[Event "Romanian Team Blitz Open 2022"]
[Site "Sebes"]
[Date "2022.12.04"]
[Round "1.11"]
[White "Dumitrascu, Daniel"]
[Black "Ghimpu, Samuel-Timotei"]
[Result "0-1"]
[ECO "B06"]
[WhiteElo "1694"]
[BlackElo "2455"]
[Annotator "TA"]
[PlyCount "74"]
[EventDate "2022.12.04"]
[EventType "blitz"]
[EventCountry "ROU"]
[SourceTitle "playchess.com"]
[Source "ChessBase"]
[SourceQuality "1"]
[TimeControl "180+2"]

{[%evp 9,74,12,35,41,49,14,24,0,0,0,-16,-33,-32,-30,0,27,23,-33,-37,-33,-23,-47,0,10,37,0,0,0,0,0,9,29,0,0,0,0,0,-10,8,0,81,92,68,79,93,90,96,72,79,84,161,-60,8,-230,-187,-999,-970,-5314,-4898,-29985,-29986,-29987,-29979,-29978,-29979,-29989,-29990]} 1. e4 {[%emt 0:00:01]} g6 {[%emt 0:00:01]} 2. d4 {[%emt 0:00:01]} Bg7 {[%emt 0:00:01]} 3. Nf3 {[%emt 0:00:01]} d6 {[%emt 0:00:01]} 4. Bg5 {[%emt 0:00:01]} h6 {[%emt 0:00:09]} 5. Bf4 {[%emt 0:00:04]} a6 {[%emt 0:00:06]} (5... c5 $5) 6. Nc3 {[%emt 0:00:01] B06: Modern Defence.} b5 {[%emt 0:00:03] [#]} 7. a3 $146 {[%emt 0:00:00]} ({Predecessor:} 7. Bd3 Nd7 8. Qd2 c5 9. dxc5 Nxc5 10. O-O-O Bb7 11. Rhe1 b4 12. Nd5 Bxd5 13. exd5 {0-1 (40) Gupta,S (2365)-Chernomordik,P (2203) Chess.com INT 2019}) 7... Bb7 {[%emt 0:00:02]} 8. Bd3 {[%emt 0:00:26] White has an edge.} Nd7 {[%emt 0:00:03]} 9. O-O {[%emt 0:00:02]} c5 {[%emt 0:00:07]} 10. d5 {[%emt 0:00:13]} Ngf6 {[%emt 0:00:04]} 11. Re1 {[%emt 0:00:08]} c4 {[%emt 0:00:11] Prevents h3.} (11... O-O $142) 12. Bf1 $11 {[%emt 0:00:01]} O-O {[%emt 0:00:10]} 13. h4 {[%emt 0:00:10]} (13. Nd4 $11) 13... Nc5 $15 {[%emt 0:00:05]} 14. Qd2 {[%emt 0:00:15]} Kh7 {[%emt 0:00:06]} 15. Rad1 {[%emt 0:00:04]} Re8 {[%emt 0:00:08]} (15... e6 $15) 16. e5 $11 {[%emt 0:00:06]} Ng4 {[%emt 0:00:51]} 17. exd6 {[%emt 0:00:08]} (17. h5 {feels hotter.} gxh5 18. b3 e6 19. exd6 exd5 20. Nxd5 Ne4 21. Rxe4 Rxe4 22. g3) 17... exd6 {[%emt 0:00:02]} 18. Rxe8 {[%emt 0:00:01]} Qxe8 {[%emt 0:00:01]} 19. Bxd6 {[%emt 0:00:01]} Ne4 {[%emt 0:00:02]} 20. Nxe4 {[%emt 0:00:11]} Qxe4 {[%emt 0:00:03]} 21. Bg3 {[%emt 0:00:27]} Rd8 {[%emt 0:00:14][%cal Rd8d5]} 22. d6 {[%emt 0:00:00]} Bxb2 {[%emt 0:00:14]} 23. Re1 {[%emt 0:00:20]} Qf5 {[%emt 0:00:02]} 24. Nd4 {[%emt 0:00:11]} Qf6 {[%emt 0:00:03]} (24... Qd5 $11 {remains equal.} 25. Qa5 Rd7) 25. c3 $16 {[%emt 0:00:18]} Bxa3 {[%emt 0:01:03]} 26. Be2 Ne5 {[%emt 0:00:00]} 27. Bxe5 {[%emt 0:00:07][%mdl 64] [#] Remove Defender} Qxe5 28. Bf3 Qxd6 {[%emt 0:00:00] Hoping for ...Bxf3.} 29. Bxb7 {[%emt 0:00:01][%cal Oh4h5]} b4 {[%emt 0:00:00] Against h5} (29... Bc5 $16) 30. Bxa6 $2 {[%emt 0:00:19]} Qxa6 {[%emt 0:00:00]} (30... bxc3 $1 $15 31. Qxc3 Qxa6) 31. cxb4 $2 {[%emt 0:00:02] [#] This costs White the game.} (31. Qf4 $11 {and White is okay.} Qb7 32. Qf6) 31... Qf6 {[%emt 0:00:00]} 32. Qa2 $2 {[%emt 0:00:06]} (32. Qc3) 32... Bxb4 $19 {[%emt 0:00:00]} 33. Rd1 {[%emt 0:00:01]} Rxd4 {[%emt 0:00:00]} 34. Rb1 {[%emt 0:00:05]} c3 {[%emt 0:00:00] Black mates.} 35. Rf1 {[%emt 0:00:09]} Rd2 {[%emt 0:00:00]} 36. Qc4 {[%emt 0:00:02]} Bd6 {[%emt 0:00:02]} 37. Qc8 {[%emt 0:00:06]} Qxh4 {[%emt 0:00:08] Weighted Error Value: White=0.74/Black=0.17 (very precise)} 0-1

[Event "Romanian Team Blitz Open 2022"]
[Site "Sebes"]
[Date "2022.12.04"]
[Round "1.12"]
[White "Talu, Mircea"]
[Black "Carac, Radu-Ionut"]
[Result "1-0"]
[ECO "A13"]
[WhiteElo "2327"]
[BlackElo "1569"]
[Annotator "TA"]
[PlyCount "43"]
[EventDate "2022.12.04"]
[EventType "blitz"]
[EventCountry "ROU"]
[SourceTitle "playchess.com"]
[Source "ChessBase"]
[SourceQuality "1"]
[TimeControl "180+2"]

{[%evp 12,43,17,8,40,44,38,28,91,42,43,43,58,45,38,29,90,87,89,83,136,129,138,162,337,335,367,378,384,383,385,370,846,827]} 1. Nf3 {[%emt 0:00:02]} d5 {[%emt 0:00:01]} 2. b3 {[%emt 0:00:01]} Nf6 {[%emt 0:00:02]} 3. Bb2 {[%emt 0:00:01]} e6 {[%emt 0:00:03]} 4. e3 {[%emt 0:00:05]} c5 {[%emt 0:00:02]} 5. c4 {[%emt 0:00:05]} Nc6 {[%emt 0:00:05]} 6. cxd5 {[%emt 0:00:02]} exd5 {[%emt 0:00:02]} 7. Bb5 {[%emt 0:00:02]} a6 {[%emt 0:00:14] A13: English Opening: 1...e6.} 8. Bxc6+ {[%emt 0:00:05]} bxc6 {[%emt 0:00:02]} 9. O-O {[%emt 0:00:03]} Be7 {[%emt 0:00:16]} (9... Bd6 $11) 10. h3 {[%emt 0:00:10]} (10. Nc3 $16) 10... O-O {[%emt 0:00:03]} 11. Nc3 {[%emt 0:00:02]} Bf5 {[%emt 0:00:05] [#]} 12. Rc1 $146 {[%emt 0:00:07]} ({Predecessor:} 12. d4 Ne4 13. Nxe4 dxe4 14. Ne5 Rc8 15. dxc5 Bxc5 16. Rc1 Qd5 17. Qh5 Bg6 18. Qe2 {1-0 (61) Klekowski,M (2510)-Pacan Milej,K (2401) Bydgoszcz 2021}) 12... Bd3 {[%emt 0:00:04]} 13. Re1 {[%emt 0:00:02]} Rc8 {[%emt 0:00:11]} (13... Nd7 $11 {keeps the balance.}) 14. Ne5 $16 {[%emt 0:00:08]} Bf5 {[%emt 0:00:06]} 15. Na4 {[%emt 0:00:03] White is more active.} Qa5 {[%emt 0:00:28]} (15... Re8 $142) 16. d4 {[%emt 0:00:04]} Ne4 {[%emt 0:00:26]} 17. f3 {[%emt 0:00:27] Prevents f6.} Nd6 {[%emt 0:00:25] [#]} (17... Ng5) 18. Rxc5 $18 {[%emt 0:00:06][%cal Bc1c5,Bc5d5,Bd5f5][%mdl 32]} Nb5 {[%emt 0:00:28]} 19. Nxc6 {[%emt 0:00:04]} ({Not} 19. Rxc6 f6 $16) 19... Qc7 {[%emt 0:00:08]} 20. Nxe7+ {[%emt 0:00:11]} ({Don't take} 20. Rxd5 Qxc6 21. Rxf5 Qc2 $18) 20... Qxe7 {[%emt 0:00:02]} 21. Rxd5 {[%emt 0:00:10]} Rc2 $2 {[%emt 0:00:12] [#]} (21... Be6 22. Rc5 Qh4) 22. Rxf5 {[%emt 0:00:08] Weighted Error Value: White=0.08 (flawless) /Black=0.44} 1-0

[Event "Romanian Team Blitz Open 2022"]
[Site "Sebes"]
[Date "2022.12.04"]
[Round "1.13"]
[White "Filip, Lucian-Ioan"]
[Black "Saioc, David"]
[Result "1-0"]
[ECO "A50"]
[WhiteElo "2370"]
[BlackElo "2026"]
[Annotator "TA"]
[PlyCount "88"]
[EventDate "2022.12.04"]
[EventType "blitz"]
[EventCountry "ROU"]
[SourceTitle "playchess.com"]
[Source "ChessBase"]
[SourceQuality "1"]
[TimeControl "180+2"]

{[%evp 12,88,24,24,49,34,42,39,52,55,59,52,46,13,61,66,97,99,110,87,92,76,91,56,72,53,64,3,5,-173,-178,-168,68,18,115,117,240,94,138,88,99,102,114,76,79,64,81,27,79,79,79,79,79,79,79,79,79,0,79,79,79,79,79,79,79,79,79,72,79,79,80,80,104,79,79,79,79,79,80]} 1. Nf3 {[%emt 0:00:01]} Nf6 {[%emt 0:00:02]} 2. c4 {[%emt 0:00:01]} b6 {[%emt 0:00:03]} 3. g3 {[%emt 0:00:04]} Bb7 {[%emt 0:00:01]} 4. Bg2 g6 {[%emt 0:03:04]} 5. O-O {[%emt 0:00:12]} Bg7 {[%emt 0:00:00]} 6. d4 {[%emt 0:00:38]} O-O {[%emt 0:00:00]} 7. d5 {[%emt 0:00:12] 7.Re1 is the recent fashion.} e6 {[%emt 0:00:00][%cal Re6d5] A50: Queen's Fianchetto Defence (1 d4 Nf6 2 c4 b6).} 8. Nc3 {[%emt 0:00:02]} exd5 {[%emt 0:00:00]} 9. cxd5 {[%emt 0:00:02]} Re8 {[%emt 0:00:00] White is slightly better.} 10. Nd4 {[%emt 0:00:30]} d6 {[%emt 0:00:00]} 11. b3 {[%emt 0:00:17] [#]} Qd7 $146 {[%emt 0:00:00]} ({Predecessor:} 11... a5 12. Bb2 Na6 13. a3 Qe7 14. Rc1 h5 15. e3 Ng4 16. Kh1 Ne5 17. Nc6 Qd7 18. Nxe5 Bxe5 {0-1 (24) Czakon,J (2510)-Matnadze,A (2411) Barbera del Valles 2008}) 12. Bb2 {[%emt 0:00:10]} a6 {[%emt 0:00:00]} (12... c6 $11) 13. Rc1 $14 {[%emt 0:00:05]} Qd8 {[%emt 0:00:00]} 14. Re1 {[%emt 0:00:22]} Nbd7 {[%emt 0:00:00]} 15. h3 {[%emt 0:00:11]} Rc8 {[%emt 0:00:08]} 16. Qc2 {[%emt 0:00:15]} Nb8 {[%emt 0:00:09][%cal Bd7b8,Bb8c6,Bc6d4][%mdl 32]} 17. Qd2 {[%emt 0:00:10]} c5 {[%emt 0:00:04]} 18. dxc6 {[%emt 0:00:01]} Nxc6 {[%emt 0:00:01]} 19. Red1 {[%emt 0:00:11]} (19. Nc2 $14) 19... Nxd4 $1 $11 {[%emt 0:00:05]} 20. Qxd4 {[%emt 0:00:03] [#]} (20. Bxb7 $11 {and White is okay.} Rxc3 21. Bxc3 (21. Qxd4 Ne4 $11) 21... Nxe2+ 22. Kg2 Nxc1 23. Qxc1) 20... Bxg2 $1 $19 21. Kxg2 {[%emt 0:00:01]} Re6 {[%emt 0:00:02]} ({Black should try} 21... Ne4 $1 $19 22. Qd3 Bxc3 23. Rxc3 Nxc3 24. Bxc3 Qe7) 22. Qd2 {[%emt 0:00:07]} (22. Nd5 Rxc1 23. Rxc1 Qa8 $11) ({White should play} 22. Qd3 $14) 22... Ne4 {[%emt 0:00:02]} (22... b5 $11) 23. Nxe4 $16 {[%emt 0:00:01]} Rxe4 {[%emt 0:00:01]} (23... Bxb2 $16 24. Rxc8 (24. Qxb2 Rxc1 25. Qxc1 Rxe4 $16) 24... Qxc8) 24. Bxg7 (24. Qxd6 $18 Re8 25. Qb4) 24... Kxg7 25. e3 {[%emt 0:00:10]} (25. Qxd6 $2 {perishes.} Qxd6 26. Rxd6 Rxc1 $19) (25. Qb2+ $142 f6 26. Rxc8 Qxc8 27. Rxd6) 25... Rxc1 {[%emt 0:00:04]} 26. Qxc1 {[%emt 0:00:02][%mdl 4096] Endgame KQR-KQR} Re6 {[%emt 0:00:03]} 27. Kg1 {[%emt 0:00:02]} Qf6 {[%emt 0:00:02]} 28. Qc6 {[%emt 0:00:03]} Qb2 {[%emt 0:00:04]} 29. Qxb6 {[%emt 0:00:03]} (29. Rxd6 $16 Rxd6 30. Qxd6) 29... Qxa2 {[%emt 0:00:01]} (29... Rf6 $11 {remains equal.} 30. e4 (30. Rxd6 $2 {leads to mate.} Qxf2+ 31. Kh1 Qe1+ 32. Kh2 Rf2#) 30... Qxa2) 30. Rxd6 {[%emt 0:00:02] White is more active.} Rxd6 {[%emt 0:00:01]} 31. Qxd6 {[%emt 0:00:00]} Qxb3 {[%emt 0:00:01]} 32. Qxa6 {[%emt 0:00:01] KQ-KQ} Qd1+ {[%emt 0:00:02]} 33. Kg2 {[%emt 0:00:05]} Qd5+ {[%emt 0:00:01]} 34. Kg1 {[%emt 0:00:01]} Qd1+ $1 {[%emt 0:00:01]} 35. Qf1 {[%emt 0:00:01] White is better.} Qf3 {[%emt 0:00:00]} 36. Qa1+ {[%emt 0:00:03]} Kg8 {[%emt 0:00:02]} 37. Qd4 {[%emt 0:00:01]} Qf5 {[%emt 0:00:04]} 38. Kg2 {[%emt 0:00:01]} Qe6 {[%emt 0:00:02]} 39. g4 {[%emt 0:00:03]} h6 {[%emt 0:00:04]} 40. Kg3 {[%emt 0:00:03]} Kh7 {[%emt 0:00:01]} 41. Qf4 {[%emt 0:00:02]} Qd5 {[%emt 0:00:04]} 42. Qf3 {[%emt 0:00:02]} Qd6+ {[%emt 0:00:01] [#]} 43. Kg2 $1 {[%emt 0:00:01]} Qe6 {[%emt 0:00:02]} 44. Qb7 {[%emt 0:00:01]} Kg7 {[%emt 0:00:02] Black escapes into a draw.   Weighted Error Value: White=0.27 (precise) /Black=0.24 (precise)} 1-0

[Event "Romanian Team Blitz Open 2022"]
[Site "Sebes"]
[Date "2022.12.04"]
[Round "1.14"]
[White "Tariceanu, Victor"]
[Black "Secheres, Adrian-Simion"]
[Result "0-1"]
[ECO "C25"]
[WhiteElo "1720"]
[BlackElo "2365"]
[Annotator "TA"]
[PlyCount "70"]
[EventDate "2022.12.04"]
[EventType "blitz"]
[EventCountry "ROU"]
[SourceTitle "playchess.com"]
[Source "ChessBase"]
[SourceQuality "1"]
[TimeControl "180+2"]

{[%evp 11,70,4,3,-22,25,-8,0,-19,-6,-10,-14,-26,-20,-17,0,0,89,0,22,-60,-9,-23,-16,-28,-4,-64,-37,-52,-44,-78,-39,-39,-27,-75,-73,-86,-82,-90,0,0,0,4,78,-66,41,-73,-95,-873,-817,-29980,-29981,-29982,-29983,-29994,-29995,-29995,-29987,-29993,-29987,-29986,-29987]} 1. e4 {[%emt 0:00:01]} Nc6 {[%emt 0:00:01]} 2. Nc3 {[%emt 0:00:03]} d6 {[%emt 0:00:03]} 3. g3 {[%emt 0:00:01]} g6 {[%emt 0:00:06]} 4. Bg2 {[%emt 0:00:01]} Bg7 {[%emt 0:00:02]} 5. Nge2 {[%emt 0:00:01]} e5 {[%emt 0:00:04]} 6. d3 {[%emt 0:00:01]} Nge7 {[%emt 0:00:08][%cal Bg8e7,Be7d5,Bd5e3][%mdl 32]} 7. Be3 {[%emt 0:00:03] C25: Vienna Game: Alternatives to 2...Nf6.} Be6 {[%emt 0:00:05]} (7... Nd4 $142) 8. Qd2 {[%emt 0:00:02] [#]} d5 $146 {[%emt 0:00:09]} ({Predecessor:} 8... h5 9. h4 Qd7 10. O-O-O O-O-O 11. a3 Kb8 12. Kb1 a6 13. Nd5 Nd4 14. Bxd4 exd4 {1-0 (62) Rasevic,S-Gardi,G (1958) Arolo di Leggiuno 2014}) 9. Bg5 {[%emt 0:00:33] The position is equal.} f6 {[%emt 0:00:16]} 10. exd5 $1 {[%emt 0:00:01]} Nxd5 {[%emt 0:00:07]} 11. Be3 {[%emt 0:00:03]} Qd7 {[%emt 0:00:16]} 12. O-O-O {[%emt 0:00:02]} Nxe3 {[%emt 0:00:05]} 13. Qxe3 {[%emt 0:00:09]} O-O {[%emt 0:00:32]} (13... Nd4 $1 $11 {remains equal.}) 14. Kb1 {[%emt 0:00:07]} (14. d4 $16 Bf7 15. dxe5) 14... Nd4 $11 {[%emt 0:00:06]} 15. a3 {[%emt 0:00:37]} ({White should play} 15. h4 $11) 15... c6 {[%emt 0:00:01]} ({Black should try} 15... c5 $15) 16. Ne4 {[%emt 0:00:03]} b6 $36 {[%emt 0:00:13][%mdl 2048] Inhibits Nc5. Black is more active.} 17. Nxd4 {[%emt 0:00:26]} (17. h4 {looks sharper.} h5 18. Nxd4 exd4 19. Qf4) 17... exd4 {[%emt 0:00:02]} 18. Qe2 {[%emt 0:00:05]} (18. Qf4 $11) 18... Kh8 {[%emt 0:00:02]} 19. Rhe1 {[%emt 0:00:02][%cal Oe4c5]} Rae8 {[%emt 0:00:02] [#] aiming for ...Qd5.} 20. Qd2 {[%emt 0:00:07]} Qd5 {[%emt 0:00:03] ( -> ...Qa2+)} 21. b3 {[%emt 0:00:15][%cal Oe4f6]} Qd7 {[%emt 0:00:02]} 22. f4 {[%emt 0:00:06]} (22. Qf4 $11 {is superior.}) 22... a5 $17 {[%emt 0:00:01][%cal Oa5a4]} 23. a4 {[%emt 0:00:04][%cal Oh2h3]} Bd5 {[%emt 0:00:03]} 24. Qf2 {[%emt 0:00:07]} c5 {[%emt 0:00:04]} ({Better is} 24... Bg8 $17) 25. Nd2 $11 {[%emt 0:00:10] And now Bxd5 would win.} Bf7 {[%emt 0:00:09]} 26. Nc4 {[%emt 0:00:03]} b5 {[%emt 0:00:02]} (26... Bxc4 $11 27. dxc4 f5) 27. Nxa5 {[%emt 0:00:11] [#]} (27. axb5 $16 {Threatens to win with Bc6.} Rxe1 28. Rxe1) 27... Rxe1 {[%emt 0:00:05]} (27... Ra8 $1 $15 28. Qd2 (28. Bxa8 Rxa8 29. Qd2 Bf8 $15) 28... Qc7 29. Bxa8 Rxa8) 28. Rxe1 {[%emt 0:00:07]} (28. Qxe1 $14 {was forced to keep a grip.} bxa4 29. Bc6) 28... bxa4 $17 {[%emt 0:00:02]} 29. bxa4 {[%emt 0:00:05][%mdl 8192] Now White is beyond hope.} (29. Qd2 $17) 29... Qxa4 $19 {[%emt 0:00:02]} 30. Nc6 {[%emt 0:00:12]} Qa3 {[%emt 0:00:12] Black mates.} 31. c3 {[%emt 0:00:06]} dxc3 {[%emt 0:00:04]} 32. Qc2 {[%emt 0:00:03]} Ra8 {[%emt 0:00:04][%csl Ga8][%cal Ra3a1]} 33. Na5 {[%emt 0:00:07]} Rb8+ {[%emt 0:00:08]} 34. Nb7 {[%emt 0:00:03]} Qb4+ {[%emt 0:00:06]} 35. Kc1 {[%emt 0:00:02]} Bb3 {[%emt 0:00:45] Weighted Error Value: White=0.65/Black=0.24 (precise)} 0-1

[Event "Romanian Team Blitz Open 2022"]
[Site "Sebes"]
[Date "2022.12.04"]
[Round "1.15"]
[White "Nastore, Pavel-Alexandru"]
[Black "Popescu, Alexandru-Mihai"]
[Result "1-0"]
[ECO "E90"]
[WhiteElo "2218"]
[BlackElo "1634"]
[Annotator "TA"]
[PlyCount "81"]
[EventDate "2022.12.04"]
[EventType "blitz"]
[EventCountry "ROU"]
[SourceTitle "playchess.com"]
[Source "ChessBase"]
[SourceQuality "1"]
[TimeControl "180+2"]

{[%evp 12,80,50,27,95,78,91,84,91,93,96,77,84,84,91,77,87,88,94,102,96,38,37,45,20,10,59,52,40,47,51,36,22,36,88,21,32,22,31,-236,-239,-287,-284,-267,-51,-66,-71,-165,-109,-258,-215,-281,88,82,167,149,152,81,477,467,443,443,486,383,1611,377,5293,5277,3079,3010,29999]} 1. d4 {[%emt 0:03:04]} Nf6 {[%emt 0:03:04]} 2. Nf3 c5 {[%emt 0:00:02]} 3. d5 {[%emt 0:00:04]} d6 {[%emt 0:00:02]} 4. c4 {[%emt 0:00:02]} g6 {[%emt 0:00:02]} 5. Nc3 {[%emt 0:00:02]} Bg7 {[%emt 0:00:02]} 6. h3 {[%emt 0:00:02]} O-O {[%emt 0:00:02]} 7. e4 {[%emt 0:00:02]} Nfd7 {[%emt 0:00:02] E90: King's Indian: Classical: Early deviations and 6 h3.} (7... e6 $11) 8. Bd3 {[%emt 0:00:02]} Ne5 {[%emt 0:00:02]} 9. Nxe5 {[%emt 0:00:02]} Bxe5 {[%emt 0:00:02] White is better.} 10. O-O {[%emt 0:00:02]} Nd7 {[%emt 0:00:02]} 11. Be3 {[%emt 0:00:02]} Bg7 {[%emt 0:00:02]} 12. f4 {[%emt 0:00:02]} Nb6 {[%emt 0:00:02] [#]} 13. Qc2 $146 {[%emt 0:00:02]} ({Predecessor:} 13. Qd2 Bh6 14. Rae1 e6 15. dxe6 fxe6 16. e5 dxe5 17. fxe5 Nxc4 18. Rxf8+ Bxf8 19. Bxc4 Qxd2 20. Bxd2 a6 21. a4 b6 22. Ne4 h6 23. Bc3 {1-0 (23) Rej,T (2067)-Reading,J (1363) Adelaide 2003}) 13... Bd7 {[%emt 0:00:02]} 14. a4 {[%emt 0:00:02][%cal Ba2a4,Ba4a5][%mdl 32]} e6 {[%emt 0:00:02]} 15. a5 {[%emt 0:00:02]} Nc8 {[%cal Bb6c8,Bc8a7,Ba7b5,Bb5d4,Bd4b3,Bb3c1][%mdl 32]} 16. Ra2 {[%emt 0:00:02]} (16. f5 $16) 16... exd5 $14 {[%emt 0:00:04]} 17. cxd5 {[%emt 0:00:02]} Re8 {[%emt 0:00:02]} 18. Qd2 {[%emt 0:00:02]} Qe7 {[%emt 0:00:02]} (18... f5 $11) 19. Bf2 {[%emt 0:00:02]} a6 {[%emt 0:00:02]} 20. Re1 {[%emt 0:00:02]} Na7 {[%emt 0:00:02]} 21. Na4 {[%emt 0:00:02]} Bxa4 {[%emt 0:00:02]} 22. Rxa4 {[%emt 0:00:02]} Qd7 {[%emt 0:00:02] [#]} (22... Nb5 $14) 23. Ra2 {[%emt 0:00:02]} (23. Rc4 $1 $16) 23... Nb5 {[%emt 0:00:02]} 24. Rc1 {[%emt 0:00:02]} Nd4 {[%emt 0:00:02]} 25. b4 $2 {[%emt 0:00:02][%mdl 8192]} (25. Rc4 $14) 25... Nb3 $1 $19 {[%emt 0:00:02][%csl LRc1,LRd2]} 26. Qc2 {[%emt 0:00:02]} Nxc1 {[%emt 0:00:02]} 27. Qxc1 Rac8 {[%emt 0:00:02]} (27... cxb4 $19 28. Qb1 Bc3) 28. bxc5 $15 {[%emt 0:00:04]} dxc5 {[%cal Oc5c4]} 29. Rc2 {[%emt 0:00:02] [#] Against c4} (29. Qc4 $17 {was worth a try.}) 29... Bd4 {[%emt 0:00:04]} (29... c4 $1 $19 {[%cal Rc4d3]} 30. Rxc4 Rxc4 31. Qxc4 Rc8) 30. Qd2 {[%emt 0:00:02]} (30. Rc4 $17 {is a better defense.}) 30... Bxf2+ $19 {[%emt 0:00:02]} 31. Qxf2 {[%emt 0:00:02]} Qe7 $2 {[%emt 0:00:02]} ({Black should play} 31... c4 $19 32. Be2 Rxe4) 32. e5 $16 {[%emt 0:00:02][%mdl 1024] White has strong compensation.} Qc7 {[%emt 0:00:02]} (32... c4 $16 33. d6 Qd7 34. Rxc4 (34. Bxc4 Qa4 $14) 34... Rxc4 35. Bxc4 Kh8) 33. d6 $18 {[%emt 0:00:02]} Qd7 {[%emt 0:00:02]} (33... Qxa5 $2 34. d7 Rf8 35. dxc8=N Rxc8 36. Qe3 $18) 34. Be2 {[%emt 0:00:02] White is much more active.} (34. Rxc5 Rxc5 35. Qxc5 Qa4 $11) (34. Bc4 $142) 34... f6 $2 {[%emt 0:00:02][%mdl 8192]} (34... h5 $16 {is a better chance.}) 35. Bg4 {[%emt 0:00:02]} ({Weaker is} 35. Rxc5 h5 36. Bc4+ (36. exf6 $2 Rxc5 37. Qxc5 Rxe2 $19) 36... Kg7 $18) 35... f5 {[%emt 0:00:02]} 36. Bf3 c4 {[%emt 0:00:02]} 37. Qd4 {Against c3} Kf8 $2 {[%emt 0:00:02]} (37... h6 38. Bd5+ Kh7 39. Rxc4 g5) 38. Bd5 $2 {[%emt 0:00:06]} (38. e6 {[%cal Rd4h8]} Qg7 39. e7+ (39. Rxc4 Qxd4+ 40. Rxd4 Rxe6 $17) 39... Kg8 40. Qd5+ Qf7 41. Qe5) 38... Rcd8 $2 {[%emt 0:00:02]} (38... Qb5 39. e6 (39. Bxc4 Qc5 $11) 39... Qc5 40. e7+ Rxe7 41. dxe7+ Kxe7 42. Rxc4 Qxd4+ 43. Rxd4 Rc5) 39. Rxc4 {[%emt 0:00:02] Threatening mate with e6.} Rc8 40. e6 {[%emt 0:00:02][%cal Rd4h8]} Rxc4 {[%emt 0:00:04]} 41. Qh8# {[%emt 0:00:02] Weighted Error Value: White=0.54/Black=0.83} 1-0